[Event "*** Titled Tuesday Blitz"]
[Site "Chess.com"]
[Date "2020.05.19"]
[Round "7"]
[White "Ana_Berke"]
[Black "pavelalexandru07"]
[Result "1-0"]
[WhiteElo "2103"]
[BlackElo "2183"]
[TimeControl "180+1"]
[EndTime "13:16:08 PDT"]
[Termination "Ana_Berke won by resignation"]

1. e4 {[%clk 0:03:00.9]} 1... c5 {[%clk 0:02:59.4]} 2. Nf3 {[%clk 0:02:57.5]}
2... d6 {[%clk 0:02:59.1]} 3. d4 {[%clk 0:02:57]} 3... cxd4 {[%clk 0:02:57]} 4.
Nxd4 {[%clk 0:02:57.6]} 4... Nf6 {[%clk 0:02:56.5]} 5. f3 {[%clk 0:02:57.5]}
5... e5 {[%clk 0:02:55.2]} 6. Nb3 {[%clk 0:02:56.4]} 6... d5 {[%clk 0:02:49.6]}
7. Bg5 {[%clk 0:02:43.6]} 7... d4 {[%clk 0:02:29.8]} 8. c3 {[%clk 0:02:40]} 8...
Nc6 {[%clk 0:02:19]} 9. Bb5 {[%clk 0:02:37.9]} 9... Qb6 {[%clk 0:02:13.9]} 10.
Bxc6+ {[%clk 0:02:35.2]} 10... bxc6 {[%clk 0:02:12.1]} 11. cxd4 {[%clk
0:02:35.4]} 11... exd4 {[%clk 0:02:04.4]} 12. Bxf6 {[%clk 0:02:34.7]} 12... gxf6
{[%clk 0:02:02.7]} 13. Qxd4 {[%clk 0:02:34.5]} 13... Bb4+ {[%clk 0:01:10.9]} 1-0

[Event "*** Titled Tuesday Blitz"]
[Site "Chess.com"]
[Date "2020.05.19"]
[Round "7"]
[White "MrChampion_Coach"]
[Black "Luibov_AN"]
[Result "1-0"]
[WhiteElo "2302"]
[BlackElo "2083"]
[TimeControl "180+1"]
[EndTime "13:16:29 PDT"]
[Termination "MrChampion_Coach won by resignation"]

1. e4 {[%clk 0:03:00.9]} 1... g6 {[%clk 0:02:56.8]} 2. d4 {[%clk 0:02:56.1]}
2... Bg7 {[%clk 0:02:57.7]} 3. Nc3 {[%clk 0:02:56.3]} 3... c5 {[%clk 0:02:58.6]}
4. dxc5 {[%clk 0:02:55.4]} 4... Nc6 {[%clk 0:02:58.5]} 5. Nf3 {[%clk 0:02:49.2]}
5... Qa5 {[%clk 0:02:54.1]} 6. Bd2 {[%clk 0:02:34.8]} 6... Nf6 {[%clk
0:02:51.7]} 7. Nd5 {[%clk 0:02:20.9]} 7... Qd8 {[%clk 0:02:49.9]} 8. Bc3 {[%clk
0:02:19.4]} 8... O-O {[%clk 0:02:46.1]} 9. Nxf6+ {[%clk 0:02:14.1]} 9... exf6
{[%clk 0:02:45.6]} 10. Bc4 {[%clk 0:02:11]} 10... Qe7 {[%clk 0:02:43.5]} 11. O-O
{[%clk 0:02:06.3]} 11... Qxc5 {[%clk 0:02:43.1]} 12. Bd5 {[%clk 0:02:05.1]}
12... Ne5 {[%clk 0:02:31.6]} 13. a3 {[%clk 0:01:56.8]} 13... Rb8 {[%clk
0:02:22.2]} 14. Bb4 {[%clk 0:01:51.4]} 14... Qb6 {[%clk 0:02:15.4]} 15. Nxe5
{[%clk 0:01:39.9]} 15... fxe5 {[%clk 0:02:09.7]} 16. Bxf8 {[%clk 0:01:39.2]}
16... Bxf8 {[%clk 0:02:07.6]} 17. Qf3 {[%clk 0:01:37.3]} 1-0

[Event "*** Titled Tuesday Blitz"]
[Site "Chess.com"]
[Date "2020.05.19"]
[Round "7"]
[White "MomchilPetkov"]
[Black "SharapovEvgeny"]
[Result "1-0"]
[WhiteElo "2535"]
[BlackElo "2372"]
[TimeControl "180+1"]
[EndTime "13:16:43 PDT"]
[Termination "MomchilPetkov won by resignation"]

1. d4 {[%clk 0:03:00.9]} 1... d5 {[%clk 0:02:53.8]} 2. c4 {[%clk 0:03:01]} 2...
c6 {[%clk 0:02:53.5]} 3. Nf3 {[%clk 0:03:01.3]} 3... Nf6 {[%clk 0:02:53.5]} 4.
Qc2 {[%clk 0:03:01.3]} 4... g6 {[%clk 0:02:52.8]} 5. Bf4 {[%clk 0:03:01.4]} 5...
Bf5 {[%clk 0:02:51.8]} 6. Qb3 {[%clk 0:03:01]} 6... Qb6 {[%clk 0:02:51.3]} 7. c5
{[%clk 0:02:58.4]} 7... Qxb3 {[%clk 0:02:50.8]} 8. axb3 {[%clk 0:02:59.3]} 8...
Bxb1 {[%clk 0:02:50.2]} 9. Rxb1 {[%clk 0:02:59.3]} 9... Nbd7 {[%clk 0:02:48.4]}
10. Ra1 {[%clk 0:02:52.6]} 10... a6 {[%clk 0:02:48.4]} 11. b4 {[%clk 0:02:49.3]}
11... Rc8 {[%clk 0:02:46.8]} 12. e3 {[%clk 0:02:48.1]} 12... Nh5 {[%clk
0:02:45.8]} 13. Bg3 {[%clk 0:02:36]} 13... Nxg3 {[%clk 0:02:44.4]} 14. hxg3
{[%clk 0:02:36.9]} 14... Bg7 {[%clk 0:02:44.5]} 15. Be2 {[%clk 0:02:31.5]} 15...
e5 {[%clk 0:02:43.7]} 16. Kd2 {[%clk 0:02:29.7]} 16... exd4 {[%clk 0:02:39.2]}
17. Nxd4 {[%clk 0:02:25.9]} 17... O-O {[%clk 0:02:34.9]} 18. g4 {[%clk
0:02:03.6]} 1-0

[Event "*** Titled Tuesday Blitz"]
[Site "Chess.com"]
[Date "2020.05.19"]
[Round "7"]
[White "Tacticusbd"]
[Black "tteshan"]
[Result "1-0"]
[WhiteElo "2407"]
[BlackElo "2231"]
[TimeControl "180+1"]
[EndTime "13:17:08 PDT"]
[Termination "Tacticusbd won by checkmate"]

1. e4 {[%clk 0:03:00.9]} 1... c5 {[%clk 0:02:59.7]} 2. b3 {[%clk 0:02:59.2]}
2... Nc6 {[%clk 0:02:59.6]} 3. Bb2 {[%clk 0:02:58.2]} 3... e6 {[%clk 0:02:59.2]}
4. Nf3 {[%clk 0:02:54.7]} 4... Nf6 {[%clk 0:02:59.1]} 5. e5 {[%clk 0:02:53.2]}
5... Nd5 {[%clk 0:02:56.8]} 6. Bb5 {[%clk 0:02:53.2]} 6... Qc7 {[%clk
0:02:50.4]} 7. O-O {[%clk 0:02:47.5]} 7... Be7 {[%clk 0:02:46.6]} 8. Re1 {[%clk
0:02:46.2]} 8... O-O {[%clk 0:02:46.4]} 9. Nc3 {[%clk 0:02:44.7]} 9... Nxc3
{[%clk 0:02:36.8]} 10. dxc3 {[%clk 0:02:38.9]} 10... a6 {[%clk 0:02:33.5]} 11.
Bd3 {[%clk 0:02:36.2]} 11... d5 {[%clk 0:02:27.5]} 12. exd6 {[%clk 0:02:20.1]}
12... Qxd6 {[%clk 0:02:15.9]} 13. c4 {[%clk 0:02:17.4]} 13... Rd8 {[%clk
0:01:50.3]} 14. a3 {[%clk 0:02:13.9]} 14... b6 {[%clk 0:01:49.2]} 15. Ne5 {[%clk
0:02:08.2]} 15... Bb7 {[%clk 0:01:38.2]} 16. Bxh7+ {[%clk 0:01:59.5]} 16... Kf8
{[%clk 0:01:30.2]} 17. Qh5 {[%clk 0:01:49.7]} 17... Nxe5 {[%clk 0:01:26.9]} 18.
Bxe5 {[%clk 0:01:48.1]} 18... Qd2 {[%clk 0:01:20.6]} 19. Be4 {[%clk 0:01:43.8]}
19... Bxe4 {[%clk 0:01:16.7]} 20. Qh8# {[%clk 0:01:42.6]} 1-0

[Event "*** Titled Tuesday Blitz"]
[Site "Chess.com"]
[Date "2020.05.19"]
[Round "7"]
[White "Azoulas1"]
[Black "vyprd"]
[Result "1-0"]
[WhiteElo "1968"]
[BlackElo "2179"]
[TimeControl "180+1"]
[EndTime "13:17:10 PDT"]
[Termination "Azoulas1 won by resignation"]

1. e4 {[%clk 0:02:21.8]} 1... c5 {[%clk 0:02:56.1]} 2. Nf3 {[%clk 0:02:21.4]}
2... d6 {[%clk 0:02:55.9]} 3. d4 {[%clk 0:02:21.5]} 3... cxd4 {[%clk 0:02:56.8]}
4. Nxd4 {[%clk 0:02:21.4]} 4... Nf6 {[%clk 0:02:56.8]} 5. Nc3 {[%clk 0:02:21.8]}
5... a6 {[%clk 0:02:57.2]} 6. Bg5 {[%clk 0:02:21.5]} 6... Nbd7 {[%clk
0:02:56.4]} 7. f4 {[%clk 0:02:20.4]} 7... e6 {[%clk 0:02:55.7]} 8. Qf3 {[%clk
0:02:19.4]} 8... Be7 {[%clk 0:02:55.4]} 9. O-O-O {[%clk 0:02:17.8]} 9... Qc7
{[%clk 0:02:54.6]} 10. g4 {[%clk 0:02:15.9]} 10... b5 {[%clk 0:02:51.5]} 11.
Bxf6 {[%clk 0:02:14.2]} 11... Nxf6 {[%clk 0:02:50.9]} 12. g5 {[%clk 0:02:13.8]}
12... Nd7 {[%clk 0:02:50.9]} 13. f5 {[%clk 0:02:12.7]} 13... Bxg5+ {[%clk
0:02:50]} 14. Kb1 {[%clk 0:02:10.2]} 14... Nc5 {[%clk 0:02:50.3]} 15. fxe6
{[%clk 0:02:00.7]} 15... O-O {[%clk 0:02:26]} 16. Nd5 {[%clk 0:01:53.4]} 16...
Qd8 {[%clk 0:02:25]} 17. e7 {[%clk 0:01:42.2]} 17... Bxe7 {[%clk 0:02:23.6]} 18.
Nc6 {[%clk 0:01:41.6]} 18... Qe8 {[%clk 0:02:18.2]} 19. Ncxe7+ {[%clk
0:01:41.1]} 19... Kh8 {[%clk 0:02:18.3]} 20. h4 {[%clk 0:01:35.3]} 20... Bb7
{[%clk 0:02:16.5]} 21. Bg2 {[%clk 0:01:30.1]} 21... f5 {[%clk 0:02:13.4]} 22.
Nxf5 {[%clk 0:01:26]} 22... Bxd5 {[%clk 0:02:06.7]} 23. Rxd5 {[%clk 0:01:22.6]}
23... b4 {[%clk 0:01:55.2]} 24. Qg3 {[%clk 0:01:20.4]} 24... Rf7 {[%clk
0:01:53.8]} 25. Nxd6 {[%clk 0:01:17.7]} 1-0

[Event "*** Titled Tuesday Blitz"]
[Site "Chess.com"]
[Date "2020.05.19"]
[Round "7"]
[White "cfjohansson"]
[Black "FMalexhdez"]
[Result "1-0"]
[WhiteElo "2344"]
[BlackElo "2053"]
[TimeControl "180+1"]
[EndTime "13:17:15 PDT"]
[Termination "cfjohansson won by resignation"]

1. d4 {[%clk 0:03:00.9]} 1... Nf6 {[%clk 0:02:58.8]} 2. c4 {[%clk 0:03:00.4]}
2... e6 {[%clk 0:02:58.8]} 3. Nc3 {[%clk 0:02:57.3]} 3... Bb4 {[%clk 0:02:58]}
4. f3 {[%clk 0:02:57.5]} 4... c5 {[%clk 0:02:46.7]} 5. d5 {[%clk 0:02:56.8]}
5... exd5 {[%clk 0:02:40.8]} 6. cxd5 {[%clk 0:02:57.7]} 6... O-O {[%clk
0:02:38.3]} 7. e4 {[%clk 0:02:57.8]} 7... d6 {[%clk 0:02:38.3]} 8. Bd3 {[%clk
0:02:57.8]} 8... Nbd7 {[%clk 0:02:37.9]} 9. Ne2 {[%clk 0:02:58]} 9... Ne5 {[%clk
0:02:37.7]} 10. Bc2 {[%clk 0:02:58.4]} 10... a6 {[%clk 0:02:35.6]} 11. a4 {[%clk
0:02:57.1]} 11... Bd7 {[%clk 0:02:30]} 12. O-O {[%clk 0:02:55.8]} 12... b5
{[%clk 0:02:16.6]} 13. axb5 {[%clk 0:02:55.6]} 13... axb5 {[%clk 0:02:16.1]} 14.
Rxa8 {[%clk 0:02:56]} 14... Qxa8 {[%clk 0:02:15.3]} 15. f4 {[%clk 0:02:44.9]}
15... Nc4 {[%clk 0:02:03.2]} 16. Ng3 {[%clk 0:02:27.2]} 16... Bg4 {[%clk
0:01:54.2]} 17. Qd3 {[%clk 0:02:16.7]} 17... Re8 {[%clk 0:01:38.6]} 18. Nxb5
{[%clk 0:02:08.6]} 18... Qa6 {[%clk 0:01:09.6]} 19. Qxc4 {[%clk 0:02:04.9]} 1-0

[Event "*** Titled Tuesday Blitz"]
[Site "Chess.com"]
[Date "2020.05.19"]
[Round "7"]
[White "rogapa"]
[Black "Alomaterapia"]
[Result "1-0"]
[WhiteElo "2697"]
[BlackElo "2537"]
[TimeControl "180+1"]
[EndTime "13:17:34 PDT"]
[Termination "rogapa won by resignation"]

1. e4 {[%clk 0:02:59.3]} 1... c6 {[%clk 0:03:00.1]} 2. d4 {[%clk 0:02:59.1]}
2... d5 {[%clk 0:03:00.5]} 3. e5 {[%clk 0:02:59.4]} 3... Bf5 {[%clk 0:03:00.2]}
4. Nf3 {[%clk 0:02:59.4]} 4... e6 {[%clk 0:03:00]} 5. Be2 {[%clk 0:03:00.3]}
5... Ne7 {[%clk 0:03:00.4]} 6. O-O {[%clk 0:03:01.1]} 6... c5 {[%clk 0:03:00.9]}
7. Be3 {[%clk 0:02:57.2]} 7... Nec6 {[%clk 0:02:57.5]} 8. dxc5 {[%clk
0:02:53.3]} 8... Nd7 {[%clk 0:02:57.4]} 9. c4 {[%clk 0:02:53.5]} 9... dxc4
{[%clk 0:02:52.1]} 10. Na3 {[%clk 0:02:42.9]} 10... Ndxe5 {[%clk 0:02:43.2]} 11.
Nxe5 {[%clk 0:02:30.9]} 11... Nxe5 {[%clk 0:02:42.9]} 12. Qa4+ {[%clk
0:02:20.8]} 12... Qd7 {[%clk 0:02:42.6]} 13. Nb5 {[%clk 0:01:49]} 13... Rc8
{[%clk 0:02:42.1]} 14. Rfd1 {[%clk 0:01:48.4]} 14... Bd3 {[%clk 0:02:38.6]} 15.
Bxd3 {[%clk 0:01:46]} 15... cxd3 {[%clk 0:02:38.7]} 16. Qe4 {[%clk 0:01:23.1]}
16... f6 {[%clk 0:02:01.7]} 17. Nxa7 {[%clk 0:01:18.8]} 17... Ra8 {[%clk
0:01:52.4]} 18. f4 {[%clk 0:01:15.6]} 18... Ng4 {[%clk 0:01:49.2]} 19. Rxd3
{[%clk 0:01:13.9]} 19... Qf7 {[%clk 0:01:33.7]} 20. Qa4+ {[%clk 0:01:07.2]} 1-0

[Event "*** Titled Tuesday Blitz"]
[Site "Chess.com"]
[Date "2020.05.19"]
[Round "7"]
[White "RichardShtivelband"]
[Black "Crazy_girl99"]
[Result "0-1"]
[WhiteElo "2285"]
[BlackElo "2431"]
[TimeControl "180+1"]
[EndTime "13:17:44 PDT"]
[Termination "Crazy_girl99 won by resignation"]

1. e4 {[%clk 0:03:00]} 1... e5 {[%clk 0:00:23.4]} 2. Nf3 {[%clk 0:02:45.5]} 2...
Nc6 {[%clk 0:00:23.4]} 3. Bb5 {[%clk 0:02:44.9]} 3... a6 {[%clk 0:00:23.9]} 4.
Ba4 {[%clk 0:02:44.5]} 4... Nf6 {[%clk 0:00:24.2]} 5. O-O {[%clk 0:02:44]} 5...
Nxe4 {[%clk 0:00:24.3]} 6. d4 {[%clk 0:02:43.5]} 6... b5 {[%clk 0:00:24.9]} 7.
Bb3 {[%clk 0:02:43]} 7... d5 {[%clk 0:00:25.5]} 8. dxe5 {[%clk 0:02:42.8]} 8...
Be6 {[%clk 0:00:26.1]} 9. c3 {[%clk 0:02:42.6]} 9... Be7 {[%clk 0:00:26.3]} 10.
Nbd2 {[%clk 0:02:42.2]} 10... O-O {[%clk 0:00:26.9]} 11. Bc2 {[%clk 0:02:41.2]}
11... f5 {[%clk 0:00:27.4]} 12. exf6 {[%clk 0:02:27.1]} 12... Nxf6 {[%clk
0:00:27.4]} 13. Nb3 {[%clk 0:02:25.2]} 13... Qd7 {[%clk 0:00:25]} 14. Nfd4
{[%clk 0:02:17.9]} 14... Bg4 {[%clk 0:00:19.8]} 15. f3 {[%clk 0:02:17.3]} 15...
Bh5 {[%clk 0:00:18.9]} 16. Bg5 {[%clk 0:02:16]} 16... Ne5 {[%clk 0:00:17.3]} 17.
Re1 {[%clk 0:02:13.3]} 17... Bd6 {[%clk 0:00:15.6]} 18. f4 {[%clk 0:02:09.8]}
18... Bxd1 {[%clk 0:00:13.4]} 0-1

[Event "*** Titled Tuesday Blitz"]
[Site "Chess.com"]
[Date "2020.05.19"]
[Round "7"]
[White "Nellichka"]
[Black "PawnEatingZombie"]
[Result "0-1"]
[WhiteElo "1994"]
[BlackElo "2240"]
[TimeControl "180+1"]
[EndTime "13:17:51 PDT"]
[Termination "PawnEatingZombie won by checkmate"]

1. d4 {[%clk 0:03:00.9]} 1... d5 {[%clk 0:02:59.7]} 2. c4 {[%clk 0:03:01.4]}
2... e6 {[%clk 0:02:59.5]} 3. Nc3 {[%clk 0:03:00.3]} 3... Bb4 {[%clk 0:02:58.8]}
4. Nf3 {[%clk 0:02:52.6]} 4... dxc4 {[%clk 0:02:57.8]} 5. e4 {[%clk 0:02:51]}
5... b5 {[%clk 0:02:57]} 6. Bg5 {[%clk 0:02:44.8]} 6... Ne7 {[%clk 0:02:52.7]}
7. Be2 {[%clk 0:02:38.2]} 7... Bb7 {[%clk 0:02:51.1]} 8. Qc2 {[%clk 0:02:35.6]}
8... Nd7 {[%clk 0:02:43.9]} 9. O-O {[%clk 0:02:31.2]} 9... a6 {[%clk 0:02:43.5]}
10. a4 {[%clk 0:02:25.5]} 10... c6 {[%clk 0:02:24.6]} 11. b3 {[%clk 0:02:04.9]}
11... Bxc3 {[%clk 0:02:05.2]} 12. Qxc3 {[%clk 0:02:03.7]} 12... cxb3 {[%clk
0:02:04.4]} 13. d5 {[%clk 0:01:49.2]} 13... cxd5 {[%clk 0:01:47.9]} 14. exd5
{[%clk 0:01:36.2]} 14... Bxd5 {[%clk 0:01:24.3]} 15. Qxg7 {[%clk 0:01:31.9]}
15... Rg8 {[%clk 0:01:20.4]} 16. Qxh7 {[%clk 0:01:26.5]} 16... Bxf3 {[%clk
0:01:09.7]} 17. Bxf3 {[%clk 0:01:21.8]} 17... Rxg5 {[%clk 0:01:04]} 18. Bxa8
{[%clk 0:01:14.1]} 18... Qxa8 {[%clk 0:01:03.4]} 19. axb5 {[%clk 0:01:12.2]}
19... Qxg2# {[%clk 0:01:01]} 0-1

[Event "*** Titled Tuesday Blitz"]
[Site "Chess.com"]
[Date "2020.05.19"]
[Round "7"]
[White "DarkAlekhine"]
[Black "Thee-Chessboy"]
[Result "1-0"]
[WhiteElo "2626"]
[BlackElo "2409"]
[TimeControl "180+1"]
[EndTime "13:17:52 PDT"]
[Termination "DarkAlekhine won by resignation"]

1. Nf3 {[%clk 0:03:00.9]} 1... Nf6 {[%clk 0:02:59.5]} 2. g3 {[%clk 0:03:00.7]}
2... g6 {[%clk 0:02:59.5]} 3. Bg2 {[%clk 0:03:01.2]} 3... Bg7 {[%clk 0:03:00.1]}
4. O-O {[%clk 0:03:01.6]} 4... O-O {[%clk 0:03:00.7]} 5. c4 {[%clk 0:03:02.2]}
5... c6 {[%clk 0:03:00]} 6. d4 {[%clk 0:03:02.3]} 6... d5 {[%clk 0:02:59.9]} 7.
Nbd2 {[%clk 0:03:02.6]} 7... Ne4 {[%clk 0:02:57.2]} 8. e3 {[%clk 0:03:01.8]}
8... Bg4 {[%clk 0:02:42.9]} 9. h3 {[%clk 0:02:58.9]} 9... Bxf3 {[%clk 0:02:43]}
10. Qxf3 {[%clk 0:02:52.8]} 10... Nxd2 {[%clk 0:02:41.2]} 11. Bxd2 {[%clk
0:02:52.5]} 11... dxc4 {[%clk 0:02:41.5]} 12. Qe2 {[%clk 0:02:48.7]} 12... e5
{[%clk 0:02:39.7]} 13. dxe5 {[%clk 0:02:36.1]} 13... Bxe5 {[%clk 0:02:38.9]} 14.
Rfd1 {[%clk 0:02:35.4]} 14... Qf6 {[%clk 0:02:29.1]} 15. Qxc4 {[%clk 0:02:30]}
15... Nd7 {[%clk 0:02:15.4]} 16. Rab1 {[%clk 0:02:30.2]} 16... Nb6 {[%clk
0:02:15]} 17. Qc2 {[%clk 0:02:30.2]} 17... Rfd8 {[%clk 0:02:07.8]} 18. f4 {[%clk
0:02:26.5]} 18... Bd6 {[%clk 0:02:04.7]} 19. Bc3 {[%clk 0:02:22.9]} 19... Qe6
{[%clk 0:02:03.9]} 20. e4 {[%clk 0:02:22.9]} 20... Qxa2 {[%clk 0:01:59.5]} 21.
e5 {[%clk 0:02:17.8]} 21... Bc5+ {[%clk 0:01:58.4]} 22. Kh2 {[%clk 0:02:18.1]}
22... Qa4 {[%clk 0:01:49.6]} 23. b3 {[%clk 0:02:13.5]} 23... Qa6 {[%clk
0:01:12.4]} 24. Bf1 {[%clk 0:02:01.5]} 24... Qa3 {[%clk 0:01:09.6]} 25. Ra1
{[%clk 0:02:01.4]} 25... Rxd1 {[%clk 0:01:08.7]} 26. Qxd1 {[%clk 0:01:58.3]} 1-0

[Event "*** Titled Tuesday Blitz"]
[Site "Chess.com"]
[Date "2020.05.19"]
[Round "7"]
[White "Harsha_Bharathakoti"]
[Black "GHANDEEVAM2003"]
[Result "1/2-1/2"]
[WhiteElo "2761"]
[BlackElo "2907"]
[TimeControl "180+1"]
[EndTime "13:18:03 PDT"]
[Termination "Game drawn by agreement"]

1. Nf3 {[%clk 0:03:00.9]} 1... c5 {[%clk 0:02:58.1]} 2. c4 {[%clk 0:03:00.5]}
2... g6 {[%clk 0:02:57.1]} 3. d4 {[%clk 0:02:59.6]} 3... cxd4 {[%clk 0:02:56.9]}
4. Nxd4 {[%clk 0:03:00.5]} 4... Bg7 {[%clk 0:02:57.2]} 5. e4 {[%clk 0:03:00.8]}
5... Nf6 {[%clk 0:02:57.2]} 6. Nc3 {[%clk 0:03:00.2]} 6... O-O {[%clk
0:02:57.5]} 7. Be2 {[%clk 0:03:00]} 7... Nc6 {[%clk 0:02:57.8]} 8. Be3 {[%clk
0:02:59.8]} 8... d6 {[%clk 0:02:53.3]} 9. O-O {[%clk 0:02:59.6]} 9... Bd7 {[%clk
0:02:49.6]} 10. Qd2 {[%clk 0:02:57.2]} 10... Rc8 {[%clk 0:02:47.6]} 11. f3
{[%clk 0:02:56.2]} 11... Qa5 {[%clk 0:02:46.8]} 12. Rac1 {[%clk 0:02:52.4]}
12... Rfd8 {[%clk 0:02:46.1]} 13. Rfd1 {[%clk 0:02:51.5]} 13... Nxd4 {[%clk
0:02:42.5]} 14. Bxd4 {[%clk 0:02:51.4]} 14... Ne8 {[%clk 0:02:34.2]} 15. Be3
{[%clk 0:02:34.6]} 15... Be6 {[%clk 0:02:33.4]} 16. b3 {[%clk 0:02:30.3]} 16...
a6 {[%clk 0:02:28.4]} 17. Nd5 {[%clk 0:02:05.1]} 17... Qxd2 {[%clk 0:02:27.4]}
18. Bxd2 {[%clk 0:02:06]} 18... Bxd5 {[%clk 0:02:13.9]} 19. cxd5 {[%clk
0:02:06.5]} 19... Bb2 {[%clk 0:02:06.8]} 20. Rxc8 {[%clk 0:02:01.2]} 20... Rxc8
{[%clk 0:02:07.7]} 21. Bd3 {[%clk 0:02:01.4]} 21... Nf6 {[%clk 0:02:05.1]} 22.
Rb1 {[%clk 0:01:55.7]} 22... Bd4+ {[%clk 0:02:00.8]} 23. Kf1 {[%clk 0:01:55.4]}
23... Nd7 {[%clk 0:02:00.5]} 24. Rc1 {[%clk 0:01:54.1]} 24... Rxc1+ {[%clk
0:01:47]} 25. Bxc1 {[%clk 0:01:55]} 25... Ne5 {[%clk 0:01:47.9]} 26. Be2 {[%clk
0:01:41.9]} 26... h5 {[%clk 0:01:48.2]} 27. f4 {[%clk 0:01:42]} 27... Ng4 {[%clk
0:01:41.3]} 28. h3 {[%clk 0:01:14.5]} 28... Ne3+ {[%clk 0:01:36.1]} 29. Bxe3
{[%clk 0:01:12.8]} 29... Bxe3 {[%clk 0:01:37]} 30. g3 {[%clk 0:01:00.1]} 30...
h4 {[%clk 0:01:36.3]} 31. Kg2 {[%clk 0:01:00.6]} 31... hxg3 {[%clk 0:01:35.1]}
32. Kxg3 {[%clk 0:01:01.5]} 32... Kg7 {[%clk 0:01:35.3]} 1/2-1/2

[Event "*** Titled Tuesday Blitz"]
[Site "Chess.com"]
[Date "2020.05.19"]
[Round "7"]
[White "Nara_Kh"]
[Black "Savva09022009"]
[Result "0-1"]
[WhiteElo "2281"]
[BlackElo "2424"]
[TimeControl "180+1"]
[EndTime "13:18:05 PDT"]
[Termination "Savva09022009 won by resignation"]

1. e4 {[%clk 0:03:00.9]} 1... c5 {[%clk 0:02:58.2]} 2. Nf3 {[%clk 0:03:00.2]}
2... Nc6 {[%clk 0:02:57.9]} 3. Bb5 {[%clk 0:02:59.4]} 3... Nf6 {[%clk
0:02:57.4]} 4. d3 {[%clk 0:02:56.3]} 4... Qa5+ {[%clk 0:02:55.8]} 5. Nc3 {[%clk
0:02:54.9]} 5... Nd4 {[%clk 0:02:55.5]} 6. Bc4 {[%clk 0:02:45.3]} 6... b5 {[%clk
0:02:51.7]} 7. Nxd4 {[%clk 0:02:19.8]} 7... cxd4 {[%clk 0:02:46.7]} 8. b4 {[%clk
0:01:50.2]} 8... Qxb4 {[%clk 0:02:27.3]} 9. Rb1 {[%clk 0:01:41.4]} 9... Qxc3+
{[%clk 0:02:22.7]} 10. Bd2 {[%clk 0:01:36]} 10... Qa3 {[%clk 0:02:21.7]} 11.
Rxb5 {[%clk 0:01:27.6]} 11... e6 {[%clk 0:02:18.2]} 12. e5 {[%clk 0:00:53.6]}
12... Nd5 {[%clk 0:02:14.4]} 13. Ra5 {[%clk 0:00:39.1]} 13... Nc3 {[%clk
0:02:03.3]} 14. Qf3 {[%clk 0:00:27.3]} 14... Qxa5 {[%clk 0:01:53.1]} 15. Qxa8
{[%clk 0:00:26.2]} 15... Qc7 {[%clk 0:01:53]} 16. O-O {[%clk 0:00:21.3]} 16...
Bc5 {[%clk 0:01:50.2]} 17. f4 {[%clk 0:00:17.8]} 17... O-O {[%clk 0:01:49]} 18.
Qf3 {[%clk 0:00:17.4]} 18... Bb7 {[%clk 0:01:48.1]} 19. Qg3 {[%clk 0:00:17.3]}
19... Ne2+ {[%clk 0:01:43.3]} 0-1

[Event "*** Titled Tuesday Blitz"]
[Site "Chess.com"]
[Date "2020.05.19"]
[Round "7"]
[White "korbul"]
[Black "JuliaEfremova"]
[Result "0-1"]
[WhiteElo "2440"]
[BlackElo "2131"]
[TimeControl "180+1"]
[EndTime "13:18:12 PDT"]
[Termination "JuliaEfremova won by resignation"]

1. d4 {[%clk 0:03:00.9]} 1... Nf6 {[%clk 0:02:58.9]} 2. c4 {[%clk 0:03:00.3]}
2... c5 {[%clk 0:02:58.5]} 3. d5 {[%clk 0:02:59.9]} 3... b5 {[%clk 0:02:58]} 4.
a4 {[%clk 0:02:58.5]} 4... bxc4 {[%clk 0:02:53.7]} 5. Nc3 {[%clk 0:02:58.1]}
5... g6 {[%clk 0:02:51.9]} 6. e4 {[%clk 0:02:57]} 6... d6 {[%clk 0:02:50.6]} 7.
Bxc4 {[%clk 0:02:56.5]} 7... Bg7 {[%clk 0:02:50.8]} 8. Bb5+ {[%clk 0:02:56.6]}
8... Bd7 {[%clk 0:02:49.8]} 9. Nf3 {[%clk 0:02:55.6]} 9... O-O {[%clk
0:02:49.1]} 10. h3 {[%clk 0:02:54.1]} 10... Bxb5 {[%clk 0:02:43.9]} 11. axb5
{[%clk 0:02:53.3]} 11... Nbd7 {[%clk 0:02:43.8]} 12. O-O {[%clk 0:02:51.9]}
12... c4 {[%clk 0:02:38]} 13. Nd4 {[%clk 0:02:50]} 13... Nc5 {[%clk 0:02:35.7]}
14. Nc6 {[%clk 0:02:49.9]} 14... Qc7 {[%clk 0:02:35.9]} 15. Re1 {[%clk
0:02:40.4]} 15... a6 {[%clk 0:02:25]} 16. Re2 {[%clk 0:02:33.6]} 16... axb5
{[%clk 0:02:18.5]} 17. Nxb5 {[%clk 0:02:32.4]} 17... Qb7 {[%clk 0:02:14]} 18.
Rxa8 {[%clk 0:02:15]} 18... Rxa8 {[%clk 0:02:14.9]} 19. Na3 {[%clk 0:02:12.9]}
19... Ra4 {[%clk 0:01:53.3]} 20. Qc2 {[%clk 0:02:05.8]} 20... Kf8 {[%clk
0:01:50]} 21. Bg5 {[%clk 0:02:03.9]} 21... Qb3 {[%clk 0:01:40.9]} 22. Qd2 {[%clk
0:01:41.5]} 22... Ncxe4 {[%clk 0:01:29.4]} 23. Rxe4 {[%clk 0:01:30.3]} 23...
Nxe4 {[%clk 0:01:30.3]} 24. Bxe7+ {[%clk 0:01:29.9]} 24... Kg8 {[%clk 0:01:25]}
25. Qf4 {[%clk 0:01:25.6]} 25... Qd1+ {[%clk 0:01:20.5]} 26. Kh2 {[%clk
0:01:24.3]} 26... Qxd5 {[%clk 0:01:18]} 27. Bxd6 {[%clk 0:01:08.8]} 27... Qxd6
{[%clk 0:01:05.1]} 0-1